fUST/lending_fUST_20240801
["ID","MTS","AMOUNT","RATE_DAILY","PERIOD"]
[333766769,1722462646251,-500.0,0.00013972,2]
[333766770,1722462646261,-2241.85,0.00013972,2]
[333766771,1722462646271,-930.79,0.00013972,2]
[333766772,1722462646280,-910.71,0.00013972,2]
[333766773,1722462646290,-1044.65,0.00013972,2]
[333766774,1722462646299,-500.0,0.00013972,2]
[333766775,1722462646308,-984.21,0.00013972,2]
[333766776,1722462646318,-6343.85,0.00013972,2]
[333766777,1722462646328,-500.0,0.00013972,2]
[333766778,1722462646431,-7186.71,0.00013972,2]
[333766779,1722462646441,-1311.16,0.00013972,2]
[333766780,1722462646451,-2619.15,0.00013972,2]
[333766781,1722462646461,-508.03,0.00013972,2]
[333766782,1722462646471,-1400.64,0.00013972,2]
[333766783,1722462646480,-500.0,0.00013972,2]
[333766784,1722462646490,-500.0,0.00013972,2]
[333766785,1722462646500,-558.81,0.00013972,2]
[333766786,1722462646510,-500.0,0.00013972,2]
[333766787,1722462646522,-500.0,0.00013972,2]
[333766788,1722462646533,-1228.37,0.00013972,2]
[333766789,1722462646542,-2629.04,0.00013972,2]
[333766790,1722462646552,-500.0,0.00013972,2]
[333766791,1722462646561,-500.0,0.00013972,2]
[333766792,1722462646571,-566.94,0.00013972,2]
[333766793,1722462646581,-1091.29802379,0.00014,2]
[333766794,1722462646591,-150.112233,0.000141,2]
[333766795,1722462646601,-151.0,0.00014245,2]
[333766796,1722462646611,-151.0,0.00014245,2]
[333766797,1722462646621,-151.0,0.00014245,2]
[333766798,1722462646631,-3001.15,0.00014245,2]
[333766799,1722462646644,-3001.15,0.00014245,2]
[333766800,1722462646656,-3001.15,0.00014245,2]
[333766801,1722462646665,-3001.15,0.00014245,2]
[333766802,1722462646675,-3001.15,0.00014245,2]
[333766803,1722462646685,-3001.36992602,0.00014245,2]
[333766804,1722462646695,-472.863516,0.00014245,2]
[333766805,1722462646705,-472.863516,0.00014245,2]
[333766806,1722462646716,-78500.54573305,0.00014246,5]
[333766807,1722462646726,-500.0,0.00014246,2]
[333766808,1722462646736,-500.0,0.00014246,2]
[333766809,1722462646746,-500.0,0.00014246,2]
[333766810,1722462646757,-891.79,0.00014246,2]
[333766811,1722462646768,-500.0,0.00014246,2]
[333766812,1722462646780,-500.0,0.00014246,2]
[333766813,1722462646790,-500.0,0.00014246,2]
[333766814,1722462646799,-500.0,0.00014246,2]
[333766815,1722462646809,-500.0,0.00014246,2]
[333766816,1722462646818,-500.0,0.00014246,2]
[333766817,1722462646827,-151.0,0.00014246,2]
[333766818,1722462646836,-151.0,0.00014246,2]
[333766819,1722462646845,-500.0,0.00014246,2]
[333766820,1722462646855,-500.0,0.00014246,2]
[333766821,1722462646864,-482.13865015,0.00014246,2]
[333766822,1722462646873,-500.0,0.00014246,2]
[333766823,1722462646882,-500.0,0.00014246,2]
[333766824,1722462646893,-500.0,0.00014246,2]
[333766825,1722462646903,-500.0,0.00014246,2]
[333766826,1722462646912,-944.34,0.00014246,2]
[333766827,1722462646921,-500.0,0.00014246,2]
[333766828,1722462646931,-514.72,0.00014246,2]
[333766829,1722462646940,-396.81845718,0.00014246,2]
[333766830,1722462646950,-500.0,0.00014246,2]
[333766831,1722462646961,-500.0,0.00014246,2]
[333766832,1722462646972,-642.89,0.00014246,2]
[333766833,1722462646982,-1079.01,0.00014246,2]
[333766834,1722462646994,-500.0,0.00014246,2]
[333766835,1722462647004,-500.0,0.00014246,2]
[333766836,1722462647014,-500.0,0.00014246,2]
[333766837,1722462647025,-178.638265,0.00014246,2]
[333766838,1722462647037,-178.638265,0.00014246,2]
[333766839,1722462647049,-207.782088,0.00014246,2]
[333766840,1722462647059,-544.74,0.00014246,2]
[333766841,1722462647069,-1204.11,0.00014246,2]
[333766842,1722462647080,-500.0,0.00014246,2]
[333766843,1722462647089,-251.192185,0.00014246,2]
[333766844,1722462647099,-251.192185,0.00014246,2]
[333766845,1722462647108,-151.0,0.00014246,2]
[333766846,1722462647120,-500.0,0.00014246,2]
[333766847,1722462647131,-803.02003,0.00014246,2]
[333766848,1722462647141,-151.0,0.00014246,2]
[333766849,1722462647151,-522.47,0.00014246,2]
[333766850,1722462647161,-803.02003,0.00014246,2]
[333766851,1722462647172,-602.68,0.00014246,2]
[333766852,1722462647181,-564.35,0.00014246,2]
[333766853,1722462647191,-500.0,0.00014246,2]
[333766854,1722462647200,-541.28,0.00014246,2]
[333766855,1722462647210,-643.25,0.00014246,2]
[333766856,1722462647221,-500.0,0.00014246,2]
[333766857,1722462647230,-151.0,0.00014246,2]
[333766858,1722462647240,-151.0,0.00014246,2]
[333766859,1722462647253,-589.432824,0.00014246,2]
[333766860,1722462647262,-151.0,0.00014246,2]
[333766861,1722462647272,-500.0,0.00014246,2]
[333766862,1722462647282,-589.432824,0.00014246,2]
[333766863,1722462647295,-500.0,0.00014246,2]
[333766864,1722462647306,-649.74,0.00014246,2]
[333766865,1722462647318,-500.0,0.00014246,2]
[333766866,1722462647328,-500.0,0.00014246,2]
[333766867,1722462647339,-1499.28,0.00014246,2]
[333766868,1722462647349,-151.0,0.00014246,2]
[333766869,1722462647359,-500.0,0.00014246,2]
[333766870,1722462647369,-822.5,0.00014246,2]
[333766871,1722462647379,-500.0,0.00014246,2]
[333766872,1722462647390,-500.0,0.00014246,2]
[333766873,1722462647399,-277.324012,0.00014246,2]
[333766874,1722462647410,-1600.34,0.00014246,2]
[333766875,1722462647419,-1264.95,0.00014246,2]
[333766876,1722462647428,-500.0,0.00014246,2]
[333766877,1722462647439,-500.0,0.00014246,2]
[333766878,1722462647449,-2468.56,0.00014246,2]
[333766879,1722462647460,-500.0,0.00014246,2]
[333766880,1722462647470,-249.613604,0.00014246,2]
[333766881,1722462647479,-500.0,0.00014246,2]
[333766882,1722462647489,-7328.76,0.00014246,2]
[333766883,1722462647499,-500.0,0.00014246,2]
[333766884,1722462647509,-1253.02,0.00014246,2]
[333766885,1722462647519,-763.19,0.00014246,2]
[333766886,1722462647529,-500.0,0.00014246,2]
[333766887,1722462647539,-2530.58,0.00014246,2]
[333766888,1722462647548,-500.0,0.00014246,2]
[333766889,1722462647558,-565.96,0.00014246,2]
[333766890,1722462647567,-500.0,0.00014246,2]
[333766891,1722462647578,-5057.72,0.00014246,2]
[333766892,1722462647588,-500.0,0.00014246,2]
[333766893,1722462647599,-500.0,0.00014246,2]
[333766894,1722462647608,-980.72,0.00014246,2]
[333766895,1722462647618,-1367.79,0.00014246,2]
[333766896,1722462647627,-500.0,0.00014246,2]
[333766897,1722462647637,-500.0,0.00014246,2]
[333766898,1722462647647,-500.0,0.00014246,2]
[333766899,1722462647656,-500.0,0.00014246,2]
[333766900,1722462647666,-515.05,0.00014246,2]
[333766901,1722462647677,-1155.64,0.00014246,2]
[333766902,1722462647687,-2031.42,0.00014246,2]
[333766903,1722462647698,-816.06,0.00014246,2]
[333766904,1722462647710,-500.0,0.00014246,2]
[333766905,1722462647720,-500.0,0.00014246,2]
[333766906,1722462647731,-500.0,0.00014246,2]
[333766907,1722462647741,-819.74,0.00014246,2]
[333766908,1722462647751,-1193.99,0.00014246,2]
[333766909,1722462647763,-1088.93,0.00014246,2]
[333766910,1722462647774,-1314.38,0.00014246,2]
[333766911,1722462647783,-574.73,0.00014246,2]
[333766912,1722462647795,-827.11,0.00014246,2]
[333766913,1722462647806,-500.0,0.00014246,2]
[333766914,1722462647817,-506.97,0.00014246,2]
[333766915,1722462647827,-1143.39,0.00014246,2]
[333766916,1722462647837,-784.04,0.00014246,2]
[333766917,1722462647847,-1518.83,0.00014246,2]
[333766918,1722462647859,-532.13,0.00014246,2]
[333766919,1722462647870,-2449.9,0.00014246,2]
[333766920,1722462647880,-1140.98,0.00014246,2]
[333766921,1722462647889,-1054.65,0.00014246,2]
[333766922,1722462647899,-500.0,0.00014246,2]
[333766923,1722462647908,-671.6,0.00014246,2]
[333766924,1722462647918,-677.29,0.00014246,2]
[333766925,1722462647929,-500.0,0.00014246,2]
[333766926,1722462647938,-520.49,0.00014246,2]
[333766927,1722462647948,-745.75,0.00014246,2]
[333766928,1722462647957,-500.0,0.00014246,2]
[333766929,1722462647967,-500.0,0.00014246,2]
[333766930,1722462647976,-500.0,0.00014246,2]
[333766931,1722462647987,-2241.85,0.00014246,2]
[333766932,1722462647999,-930.79,0.00014246,2]
[333766933,1722462648010,-910.71,0.00014246,2]
[333766934,1722462648020,-25.14329677,0.00014246,2]
[333766935,1722462648051,-1019.50670323,0.00014246,2]
[333766936,1722462648062,-94.65186171,0.00014246,2]
[333766937,1722462648076,-405.34813829,0.00014246,2]
[333766938,1722462648085,-984.21,0.00014246,2]
[333766939,1722462648095,-1383.74964923,0.00014246,2]
[333766940,1722462727316,157.73503346,9.999e-05,2]
[333766989,1722463832145,-300.0,0.00012089,2]
[333766991,1722463832157,-772.31242456,0.0001209,2]
[333766994,1722463832169,-270.5513048,0.0001209,2]
[333767081,1722463838083,-2098.90979603,0.0001209,2]
[333767083,1722463838096,-21758.22647461,0.0001209,2]
[333767085,1722463838107,-169.729874,0.00012986,2]
[333767087,1722463838116,-420.0,0.00013298,2]
[333767088,1722463838128,-153.0,0.000135,2]
[333767089,1722463838138,-233.44989731,0.00013587,2]
[333767091,1722463838151,-2779.13436246,0.00013588,2]
[333767092,1722463838162,-150.112233,0.000136,2]
[333767093,1722463838173,-108665.90907782,0.00013688,2]
[333767156,1722463840276,-3048.58766404,0.00013688,2]
[333767157,1722463840288,-4250.73654338,0.00013688,2]
[333767158,1722463840300,-5238.1973598,0.00013688,2]
[333767159,1722463840312,-221824.05649996,0.00013688,2]
[333767160,1722463840322,-531.48,0.00013697,2]
[333767161,1722463840332,-531.48,0.00013697,2]
[333767162,1722463840342,-531.48,0.00013697,2]
[333767163,1722463840351,-39250.27286652,0.00013698,5]
[333767164,1722463840362,-1888.84759716,0.00013698,5]
[333767165,1722463840372,-500.0,0.00013698,2]
[333767166,1722463840382,-500.0,0.00013698,2]
[333767167,1722463840397,-500.0,0.00013698,2]
[333767168,1722463840408,-500.96548235,0.00013698,2]
[333767169,1722463840418,-500.0,0.00013698,2]
[333767170,1722463840427,-500.0,0.00013698,2]
[333767171,1722463840438,-500.0,0.00013698,2]
[333767172,1722463840448,-516.92134549,0.00013698,2]
[333767173,1722463840458,-500.0,0.00013698,2]
[333767174,1722463840470,-500.0,0.00013698,2]
[333767175,1722463840479,-511.18948409,0.00013698,2]
[333767176,1722463840489,-500.0,0.00013698,2]
[333767177,1722463840499,-500.0,0.00013698,2]
[333767178,1722463840509,-500.0,0.00013698,2]
[333767179,1722463840520,-500.0,0.00013698,2]
[333767180,1722463840530,-500.0,0.00013698,2]
[333767181,1722463840540,-500.0,0.00013698,2]
[333767182,1722463840550,-507.57987617,0.00013698,2]
[333767183,1722463840560,-500.0,0.00013698,2]
[333767184,1722463840569,-500.0,0.00013698,2]
[333767185,1722463840579,-500.0,0.00013698,2]
[333767186,1722463840589,-461.08808009,0.00013698,2]
[333767187,1722463840598,-502.86019513,0.00013698,2]
[333767188,1722463840608,-500.0,0.00013698,2]
[333767189,1722463840617,-500.0,0.00013698,2]
[333767190,1722463840627,-500.0,0.00013698,2]
[333767191,1722463840635,-500.0,0.00013698,2]
[333767192,1722463840649,-500.0,0.00013698,2]
[333767193,1722463840659,-500.0,0.00013698,2]
[333767194,1722463840669,-500.0,0.00013698,2]
[333767195,1722463840679,-500.0,0.00013698,2]
[333767196,1722463840689,-500.0,0.00013698,2]
[333767197,1722463840699,-500.0,0.00013698,2]
[333767198,1722463840708,-500.0,0.00013698,2]
[333767199,1722463840718,-500.0,0.00013698,2]
[333767200,1722463840727,-500.0,0.00013698,2]
[333767201,1722463840737,-500.0,0.00013698,2]
[333767202,1722463840747,-640.86,0.00013698,2]
[333767203,1722463840757,-500.0,0.00013698,2]
[333767209,1722463840881,-198.87600304,0.00013698,2]
[333767211,1722463840892,-500.0,0.00013698,2]
[333767213,1722463840904,-500.0,0.00013698,2]
[333767215,1722463840914,-998.08,0.00013698,2]
[333767217,1722463840924,-500.0,0.00013698,2]
[333767219,1722463840934,-500.0,0.00013698,2]
[333767221,1722463840943,-500.0,0.00013698,2]
[333767222,1722463840953,-500.0,0.00013698,2]
[333767224,1722463840963,-400.88922609,0.00013698,2]
[333767226,1722463840972,-500.0,0.00013698,2]
[333767228,1722463840982,-500.0,0.00013698,2]
[333767230,1722463840993,-500.0,0.00013698,2]
[333767232,1722463841002,-500.0,0.00013698,2]
[333767234,1722463841013,-519.47318025,0.00013698,2]
[333767236,1722463841023,-500.0,0.00013698,2]
[333767238,1722463841032,-500.0,0.00013698,2]
[333767240,1722463841043,-500.0,0.00013698,2]
[333767242,1722463841052,-500.0,0.00013698,2]
[333767243,1722463841062,-500.0,0.00013698,2]
[333767244,1722463841072,-500.0,0.00013698,2]
[333767245,1722463841082,-500.0,0.00013698,2]
[333767246,1722463841091,-500.0,0.00013698,2]
[333767247,1722463841101,-500.0,0.00013698,2]
[333767248,1722463841111,-520.00000001,0.00013698,2]
[333767250,1722463841121,-403.60933229,0.00013698,2]
[333767252,1722463841131,-500.0,0.00013698,2]
[333767254,1722463841141,-500.0,0.00013698,2]
[333767255,1722463841152,-512.62054526,0.00013698,2]
[333767256,1722463841162,-500.0,0.00013698,2]
[333767257,1722463841171,-602.67442669,0.00013698,2]
[333767258,1722463841180,-500.0,0.00013698,2]
[333767259,1722463841190,-158.7865081,0.00013698,2]
[333767260,1722463841199,-500.0,0.00013698,2]
[333767261,1722463841209,-500.0,0.00013698,2]
[333767262,1722463841218,-500.0,0.00013698,2]
[333767264,1722463841227,-317.52063044,0.00013698,2]
[333767265,1722463841237,-500.0,0.00013698,2]
[333767266,1722463841247,-500.0,0.00013698,2]
[333767267,1722463841257,-500.0,0.00013698,2]
[333767268,1722463841267,-500.0,0.00013698,2]
[333767269,1722463841277,-545.03,0.00013698,2]
[333767270,1722463841287,-500.0,0.00013698,2]
[333767271,1722463841298,-500.0,0.00013698,2]
[333767272,1722463841308,-100.31550714,0.00013698,2]
[333767318,1722463843125,-399.68449286,0.00013698,2]
[333767320,1722463843136,-500.0,0.00013698,2]
[333767322,1722463843145,-160.7112583,0.00013698,2]
[333767324,1722463843159,-302.20670787,0.00013698,2]
[333767326,1722463843170,-37.08203383,0.00013698,2]
[333767327,1722463843179,-500.0,0.00013698,2]
[333767328,1722463843188,-500.0,0.00013698,2]
[333767329,1722463843197,-428.36906955,0.00013698,2]
[333767330,1722463843215,-71.63093045,0.00013698,2]
[333767331,1722463843225,-500.0,0.00013698,2]
[333767332,1722463843235,-328.72391075,0.00013698,2]
[333767333,1722463843247,-189.43368893,0.00013698,2]
[333767334,1722463843258,-500.0,0.00013698,2]
[333767335,1722463843267,-500.0,0.00013698,2]
[333767336,1722463843276,-500.0,0.00013698,2]
[333767338,1722463843286,-500.0,0.00013698,2]
[333767340,1722463843295,-500.0,0.00013698,2]
[333767341,1722463843304,-510.45349505,0.00013698,2]
[333767342,1722463843314,-512.46,0.00013698,2]
[333767343,1722463843323,-500.0,0.00013698,2]
[333767344,1722463843332,-500.0,0.00013698,2]
[333767345,1722463843341,-500.0,0.00013698,2]
[333767346,1722463843351,-500.0,0.00013698,2]
[333767347,1722463843361,-500.0,0.00013698,2]
[333767348,1722463843372,-500.0,0.00013698,2]
[333767350,1722463843384,-500.0,0.00013698,2]
[333767352,1722463843396,-920.96,0.00013698,2]
[333767353,1722463843408,-500.0,0.00013698,2]
[333767355,1722463843418,-500.0,0.00013698,2]
[333767357,1722463843428,-500.0,0.00013698,2]
[333767359,1722463843439,-39.85731015,0.00013698,2]
[333767360,1722463843453,-460.14268985,0.00013698,2]
[333767361,1722463843463,-500.0,0.00013698,2]
[333767363,1722463843474,-500.0,0.00013698,2]
[333767365,1722463843484,-500.0,0.00013698,2]
[333767366,1722463843493,-500.0,0.00013698,2]
[333767368,1722463843504,-500.0,0.00013698,2]
[333767369,1722463843513,-500.0,0.00013698,2]
[333767371,1722463843523,-500.0,0.00013698,2]
[333767373,1722463843532,-500.0,0.00013698,2]
[333767374,1722463843542,-500.0,0.00013698,2]
[333767375,1722463843551,-500.0,0.00013698,2]
[333767376,1722463843562,-503.97136009,0.00013698,2]
[333767378,1722463843571,-500.0,0.00013698,2]
[333767379,1722463843580,-502.84952365,0.00013698,2]
[333767380,1722463843589,-500.0,0.00013698,2]
[333767381,1722463843599,-547.54,0.00013698,2]
[333767382,1722463843608,-500.0,0.00013698,2]
[333767383,1722463843618,-501.61898324,0.00013698,2]
[333767384,1722463843628,-500.0,0.00013698,2]
[333767385,1722463843638,-500.0,0.00013698,2]
[333767386,1722463843649,-500.0,0.00013698,2]
[333767387,1722463843659,-500.0,0.00013698,2]
[333767388,1722463843679,-500.0,0.00013698,2]
[333767389,1722463843690,-500.0,0.00013698,2]
[333767390,1722463843700,-500.0,0.00013698,2]
[333767391,1722463843710,-500.0,0.00013698,2]
[333767392,1722463843720,-500.0,0.00013698,2]
[333767393,1722463843730,-500.0,0.00013698,2]
[333767394,1722463843739,-500.0,0.00013698,2]
[333767395,1722463843749,-500.0,0.00013698,2]
[333767396,1722463843759,-500.0,0.00013698,2]
[333767397,1722463843770,-500.0,0.00013698,2]
[333767398,1722463843780,-527.2649319,0.00013698,2]
[333767399,1722463843791,-500.0,0.00013698,2]
[333767400,1722463843800,-1134.04,0.00013698,2]
[333767401,1722463843810,-500.0,0.00013698,2]
[333767402,1722463843820,-500.0,0.00013698,2]
[333767403,1722463843830,-500.0,0.00013698,2]
[333767404,1722463843840,-500.0,0.00013698,2]
[333767405,1722463843850,-500.0,0.00013698,2]
[333767406,1722463843860,-500.0,0.00013698,2]
[333767407,1722463843871,-500.0,0.00013698,2]
[333767408,1722463843881,-554.4036553,0.00013698,2]
[333767409,1722463843891,-500.0,0.00013698,2]
[333767410,1722463843900,-500.0,0.00013698,2]
[333767411,1722463843910,-507.3387264,0.00013698,2]
[333767412,1722463843920,-500.0,0.00013698,2]
[333767413,1722463843929,-554.3,0.00013698,2]
[333767414,1722463843939,-500.0,0.00013698,2]
[333767415,1722463843949,-500.0,0.00013698,2]
[333767416,1722463843958,-500.0,0.00013698,2]
[333767417,1722463843968,-500.0,0.00013698,2]
[333767418,1722463843979,-500.0,0.00013698,2]
[333767419,1722463843990,-501.05158394,0.00013698,2]
[333767420,1722463844001,-500.0,0.00013698,2]
[333767421,1722463844013,-500.0,0.00013698,2]
[333767422,1722463844024,-500.0,0.00013698,2]
[333767423,1722463844034,-500.0,0.00013698,2]
[333767424,1722463844046,-500.0,0.00013698,2]
[333767425,1722463844056,-500.0,0.00013698,2]
[333767426,1722463844067,-500.0,0.00013698,2]
[333767427,1722463844077,-500.0,0.00013698,2]
[333767428,1722463844089,-500.0,0.00013698,2]
[333767429,1722463844099,-500.0,0.00013698,2]
[333767430,1722463844109,-500.0,0.00013698,2]
[333767431,1722463844119,-284.69108088,0.00013698,2]
[333767432,1722463844129,-611.56926586,0.00013698,2]
[333767433,1722463844138,-500.0,0.00013698,2]
[333767434,1722463844149,-500.0,0.00013698,2]
[333767435,1722463844159,-194.44040626,0.00013698,2]
[333767463,1722463846267,-305.55959374,0.00013698,2]
[333767465,1722463846278,-500.0,0.00013698,2]
[333767467,1722463846288,-500.0,0.00013698,2]
[333767468,1722463846297,-500.0,0.00013698,2]
[333767469,1722463846310,-500.0,0.00013698,2]
[333767470,1722463846320,-500.0,0.00013698,2]
[333767471,1722463846330,-500.0,0.00013698,2]
[333767472,1722463846341,-500.0,0.00013698,2]
[333767473,1722463846351,-487.46560679,0.00013698,2]
[333767474,1722463846364,-13.0154211,0.00013698,2]
[333767475,1722463846509,-500.0,0.00013698,2]
[333767476,1722463846520,-523.51,0.00013698,2]
[333767477,1722463846532,-500.0,0.00013698,2]
[333767478,1722463846541,-500.0,0.00013698,2]
[333767479,1722463846552,-387.25778253,0.00013698,2]
[333767480,1722463846563,-546.03,0.00013698,2]
[333767481,1722463846574,-500.0,0.00013698,2]
[333767482,1722463846583,-500.0,0.00013698,2]
[333767483,1722463846595,-646.14,0.00013698,2]
[333767484,1722463846606,-1160.53,0.00013698,2]
[333767485,1722463846616,-500.0,0.00013698,2]
[333767486,1722463846626,-621.23,0.00013698,2]
[333767487,1722463846636,-500.0,0.00013698,2]
[333767488,1722463846646,-500.0,0.00013698,2]
[333767489,1722463846658,-498.04044731,0.00013698,2]
[333767490,1722463846668,-500.0,0.00013698,2]
[333767491,1722463846680,-501.02034836,0.00013698,2]
[333767492,1722463846689,-500.0,0.00013698,2]
[333767493,1722463846699,-500.0,0.00013698,2]
[333767494,1722463846708,-500.0,0.00013698,2]
[333767495,1722463846717,-500.0,0.00013698,2]
[333767496,1722463846726,-500.0,0.00013698,2]
[333767497,1722463846735,-500.0,0.00013698,2]
[333767498,1722463846744,-500.0,0.00013698,2]
[333767499,1722463846753,-500.0,0.00013698,2]
[333767500,1722463846763,-1495.85,0.00013698,2]
[333767501,1722463846773,-558.33,0.00013698,2]
[333767502,1722463846783,-150.0,0.00013698,2]
[333767503,1722463846792,-500.0,0.00013698,2]
[333767504,1722463846803,-501.45613437,0.00013698,2]
[333767505,1722463846813,-504.29453083,0.00013698,2]
[333767506,1722463846823,-500.0,0.00013698,2]
[333767507,1722463846834,-344.94435489,0.00013698,2]
[333767508,1722463846845,-500.0,0.00013698,2]
[333767509,1722463846856,-539.44620326,0.00013698,2]
[333767510,1722463846867,-500.0,0.00013698,2]
[333767511,1722463846877,-500.0,0.00013698,2]
[333767512,1722463846887,-500.0,0.00013698,2]
[333767513,1722463846896,-500.0,0.00013698,2]
[333767514,1722463846908,-500.0,0.00013698,2]
[333767515,1722463846917,-500.0,0.00013698,2]
[333767516,1722463846926,-500.0,0.00013698,2]
[333767517,1722463846935,-500.0,0.00013698,2]
[333767518,1722463846945,-500.0,0.00013698,2]
[333767519,1722463846954,-500.0,0.00013698,2]
[333767520,1722463846965,-1008.379596,0.00013698,2]
[333767521,1722463846977,-500.0,0.00013698,2]
[333767522,1722463846989,-500.0,0.00013698,2]
[333767523,1722463846999,-1008.379596,0.00013698,2]
[333767524,1722463847009,-500.0,0.00013698,2]
[333767525,1722463847019,-193.99921509,0.00013698,2]
[333767526,1722463847029,-500.0,0.00013698,2]
[333767527,1722463847038,-602.72,0.00013698,2]
[333767528,1722463847049,-500.0,0.00013698,2]
[333767529,1722463847060,-500.0,0.00013698,2]
[333767530,1722463847071,-500.0,0.00013698,2]
[333767531,1722463847083,-907.52,0.00013698,2]
[333767532,1722463847094,-500.0,0.00013698,2]
[333767533,1722463847106,-500.0,0.00013698,2]
[333767534,1722463847118,-762.98,0.00013698,2]
[333767535,1722463847132,-477.18546593,0.00013698,2]
[333767536,1722463847142,-500.0,0.00013698,2]
[333767537,1722463847154,-500.0,0.00013698,2]
[333767538,1722463847165,-151.0,0.00013698,2]
[333767539,1722463847177,-500.0,0.00013698,2]
[333767540,1722463847188,-500.0,0.00013698,2]
[333767541,1722463847200,-500.0,0.00013698,2]
[333767542,1722463847212,-500.0,0.00013698,2]
[333767543,1722463847221,-1579.16,0.00013698,2]
[333767544,1722463847232,-389.347887,0.00013698,2]
[333767545,1722463847242,-500.0,0.00013698,2]
[333767546,1722463847254,-500.0,0.00013698,2]
[333767547,1722463847264,-389.347887,0.00013698,2]
[333767548,1722463847275,-1325.34,0.00013698,2]
[333767549,1722463847286,-500.0,0.00013698,2]
[333767550,1722463847296,-764.98,0.00013698,2]
[333767551,1722463847307,-6779.11,0.00013698,2]
[333767552,1722463847319,-500.0,0.00013698,2]
[333767553,1722463847330,-500.0,0.00013698,2]
[333767554,1722463847340,-500.0,0.00013698,2]
[333767555,1722463847350,-500.0,0.00013698,2]
[333767556,1722463847360,-434.45513033,0.00013698,2]
[333767557,1722463847374,-65.54486967,0.00013698,2]
[333767558,1722463847383,-500.0,0.00013698,2]
[333767559,1722463847394,-384.53519204,0.00013698,2]
[333767560,1722463847406,-500.0,0.00013698,2]
[333767561,1722463847416,-656.57418321,0.00013698,2]
[333767562,1722463847435,-1856.87581679,0.00013698,2]
[333767563,1722463847444,-500.0,0.00013698,2]
[333767564,1722463847453,-500.0,0.00013698,2]
[333767565,1722463847463,-500.0,0.00013698,2]
[333767566,1722463847475,-500.0,0.00013698,2]
[333767567,1722463847484,-500.0,0.00013698,2]
[333767568,1722463847494,-500.0,0.00013698,2]
[333767569,1722463847504,-869.74,0.00013698,2]
[333767570,1722463847513,-500.0,0.00013698,2]
[333767571,1722463847523,-501.05,0.00013698,2]
[333767572,1722463847533,-2665.63,0.00013698,2]
[333767573,1722463847543,-500.0,0.00013698,2]
[333767574,1722463847552,-500.0,0.00013698,2]
[333767575,1722463847561,-1250.17,0.00013698,2]
[333767576,1722463847571,-500.0,0.00013698,2]
[333767577,1722463847580,-187.06055498,0.00013698,2]
[333767578,1722463847589,-501.24621465,0.00013698,2]
[333767579,1722463847598,-500.0,0.00013698,2]
[333767580,1722463847608,-4931.28,0.00013698,2]
[333767581,1722463847617,-500.0,0.00013698,2]
[333767582,1722463847627,-500.0,0.00013698,2]
[333767583,1722463847636,-500.0,0.00013698,2]
[333767584,1722463847646,-500.0,0.00013698,2]
[333767585,1722463847657,-500.0,0.00013698,2]
[333767586,1722463847667,-500.0,0.00013698,2]
[333767587,1722463847676,-500.0,0.00013698,2]